Cogmind - Beta 13 @@@ ROGUE MODE // 2024.07.06 @ 22:20:39 Player: sinsee Result: Destroyed by S-10 Pest with Light Assault Rifle Performance ------------- Evolutions (1) 500 Regions Visited (2) 400 Robots Destroyed (13) 65 Value Destroyed (260) 260 Prototype IDs (0) 0 Alien Tech Used (0) 0 Bonus (0) 0 TOTAL SCORE: 1225 Bonus ------- None Cogmind --------- Core Integrity 0/400 Matter 113/300 Energy 100/100 System Corruption 0% Temperature Cool (0) Movement Core (2350) Ox46 Location -9/Materials Parts ------- > --- POWER (2) -------- (None) > --- PROPULSION (2) --- (None) > --- UTILITY (3) ------ Heat Sink Cargo Storage Unit > --- WEAPON (2) ------- (None) > --- INVENTORY (30) --- Ion Engine Ion Engine Ion Engine Ion Engine Ion Engine Ion Engine Ion Engine Ion Engine Ion Engine Light Ion Engine Light Treads Light Treads Aluminum Leg Aluminum Leg Aluminum Leg Medium Matter Pod (31) Propulsion Shielding Light Cannon Light Cannon Peak State ------------ > --- POWER ------------ Ion Engine Ion Engine > --- PROPULSION ------- Light Treads Light Treads > --- UTILITY ---------- Cargo Storage Unit > --- WEAPON ----------- Light Cannon Light Cannon > --- INVENTORY -------- Ion Engine Ion Engine Ion Engine Ion Engine Ion Engine Ion Engine Ion Engine Ion Engine Ion Engine Light Ion Engine Aluminum Leg Aluminum Leg Aluminum Leg Aluminum Leg Aluminum Leg Heat Sink Medium Matter Pod Propulsion Shielding Light Cannon Light Cannon [Rating: 10] Favorites ----------- Power Ion Engine Engine Ion Engine Propulsion Light Treads Treads Light Treads Leg Aluminum Leg Utility Cargo Storage Unit Device Heat Sink Storage Cargo Storage Unit Protection Propulsion Shielding Weapon Light Cannon Ballistic Gun Light Assault Rifle Ballistic Cannon Light Cannon Build | -11 -10 -9 ------- Run | Yrd Mat Mat Slots Evolved 2 | . . 2 Power 1 | . . 1 Propulsion . | . . . Utility 1 | . . 1 Weapon . | . . . Parts Attached 22 | 6 9 7 Power 6 | 1 3 2 Engine 6 | 1 3 2 Core . | . . . Reactor . | . . . Propulsion 7 | 2 1 4 Treads 4 | 2 1 1 Leg 3 | . . 3 Wheel . | . . . Hover . | . . . Flight . | . . . Utility 4 | 1 2 1 Device 1 | . . 1 Storage 2 | 1 1 . Processor . | . . . Hackware . | . . . Protection 1 | . 1 . Artifact . | . . . Weapon 5 | 2 3 . Energy Gun . | . . . Energy Cannon . | . . . Ballistic Gun 3 | 2 1 . Ballistic Cannon 2 | . 2 . Launcher . | . . . Special Weapon . | . . . Impact Weapon . | . . . Slashing Weapon . | . . . Piercing Weapon . | . . . Special Melee Weapon . | . . . Unidentified Prototypes . | . . . Parts Lost 6 | . . 6 Power 2 | . . 2 Propulsion 2 | . . 2 Utility . | . . . Weapon 2 | . . 2 Highest Loss Streak 6 | . . 6 To Critical Strikes . | . . . Average Slot Usage (%) 83 | . 87 74 Engine 15 | . 14 21 Treads 21 | . 27 . Leg 5 | . . 20 Storage 13 | . 13 11 Protection 1 | . 2 . Ballistic Gun 7 | . 9 . Ballistic Cannon 19 | . 18 20 Naked Turns . | . . . Heaviest Build 156 | 13 151 156 Greatest Support 40 | 40 40 20 Greatest Overweight (x) 49 | 3 3 49 Average Overweight (x) 2 | . 1 8 Largest Inventory Capacity 30 | 8 30 30 Average Capacity 23 | 7 21 30 Most Carried 21 | 3 21 20 Average Carried 11 | 1 8 19 Final Capacity 30 | 8 30 30 Final Carried 21 | 3 21 19 Class Distribution -------------------- 69% | Hauler-Mutant 30% | Mutant Dominant Class ---------------- Hauler-Mutant | -10/Materials Hauler-Mutant | -9/Materials Resources | -11 -10 -9 ----------- Run | Yrd Mat Mat Matter Collected 538 | 232 306 . Remotely . | . . . Salvage Created 384 | . 312 72 Parts 23 | . 18 5 Haulers Intercepted 1 | . . 1 Recyclers Shooed 2 | . 1 1 Parts Field Recycled . | . . . Retrieved Matter . | . . . Parts Self-Destructed . | . . . Prevented . | . . . Kills | -11 -10 -9 ------- Run | Yrd Mat Mat Combat Hostiles Destroyed 8 | . 8 . Guns 7 | . 7 . Cannons 1 | . 1 . Classes Destroyed 6 | . 4 2 Tunneler 1 | . . 1 Hauler 1 | . . 1 Recycler 1 | . 1 . Watcher 2 | . 1 1 Swarmer 3 | . 3 . Grunt 5 | . 5 . Best Kill Streak 4 | . 4 1 Combat Bots Only 2 | . 2 . Max Kills in Single Turn 1 | . 1 1 Gunslinging . | . . . Exploded . | . . . Melee . | . . . Uniques/NPCs Destroyed . | . . . Combat | -11 -10 -9 -------- Run | Yrd Mat Mat Hostile Shots Fired 248 | . 66 182 Missed 74 | . 21 53 Damage Taken 1649 | . 433 1216 Core 498 | . 98 400 Absorbed by Shields . | . . . Redirected to Shielding 21 | . 21 . Core Remaining (%) 80 | 100 60 . Volleys Fired 52 | . 33 19 Largest 2 | . 2 2 Hottest 70 | . 70 70 Shots Fired 102 | . 66 36 Gun 62 | . 62 . Cannon 40 | . 4 36 Launcher . | . . . Special . | . . . Kinetic 102 | . 66 36 Thermal . | . . . Explosive . | . . . Electromagnetic . | . . . Robot Hit Streak 5 | . 4 5 Robot Miss Streak 5 | . 5 5 Penetration Max . | . . . Secondary Targets 1 | . 1 . Max Gunslinging Chain 1 | . 1 . Shots Hit Robots 46 | . 33 13 Core Hits 19 | . 17 2 Critical Kills . | . . . Critical Parts Destroyed 1 | . 1 . Critical Strikes 2 | . 1 1 Destroy 1 | . 1 . Blast 1 | . . 1 Melee Attacks . | . . . Impact . | . . . Slashing . | . . . Piercing . | . . . Sneak Attacks . | . . . Combat Hostiles . | . . . Follow-up Attacks . | . . . Damage Inflicted 670 | . 352 318 Guns 332 | . 332 . Cannons 332 | . 18 314 Explosions . | . . . Melee . | . . . Ramming 6 | . 2 4 Kinetic 664 | . 350 314 Thermal . | . . . Explosive . | . . . Electromagnetic . | . . . Impact . | . . . Slashing . | . . . Piercing . | . . . Highest Corruption . | . . . Average Corruption . | . . . Corruption Purged . | . . . Corruption Blocked . | . . . Overload Shots . | . . . Overflow Damage 26 | . . 26 Projectiles 26 | . . 26 Explosions . | . . . Melee . | . . . Knockbacks 3 | . . 3 Impact . | . . . Kinetic 3 | . . 3 Secondary . | . . . Self-Inflicted Damage . | . . . Shots . | . . . Rammed 2 | . 2 . Targets Rammed 3 | . 2 1 Kicked 1 | . . 1 Crushed . | . . . Highest Temperature 206 | . 21 206 Average Temperature 82 | . 8 105 Received Heat Transfer 339 | . 117 222 Effects 1 | . . 1 Energy Bleed 1 | . . 1 Siege Activations . | . . . Robots Corrupted . | . . . Combat Hostiles . | . . . Parts Fried . | . . . Impact Corruptions . | . . . Robots Melted . | . . . Combat Hostiles . | . . . Parts Melted . | . . . Heat Transferred . | . . . Parts Sabotaged . | . . . Parts Stolen . | . . . Parts Stripped . | . . . Power Chain Reactions . | . . . Alert | -11 -10 -9 ------- Run | Yrd Mat Mat Peak Influence 227 | . 227 27 Initial . | . . . Average 31 | . 42 2 Maximum Alert Level 1 | . 1 . Low Security (%) 98 | 100 97 100 Level 1 1 | . 2 . Level 2 . | . . . Level 3 . | . . . Level 4 . | . . . Level 5 . | . . . High Security . | . . . Max Security . | . . . Squads Dispatched 2 | . 2 . Investigation 1 | . 1 . Extermination . | . . . Reinforcement 1 | . 1 . Assault . | . . . Garrison . | . . . Intercept . | . . . Searches Triggered . | . . . Construction Impeded . | . . . Haulers Reinforced . | . . . Active Scanning Responses . | . . . Cargo Convoy Interrupts . | . . . Stealth | -11 -10 -9 --------- Run | Yrd Mat Mat Distress Signals 4 | . 1 3 Communications Jammed . | . . . Distress Signals . | . . . Times Spotted 21 | . 10 11 Peak Tracking Total 9 | . 3 9 Tactical Retreats 1 | . . 1 Traps | -11 -10 -9 ------- Run | Yrd Mat Mat Traps Triggered 2 | . 2 . Indirectly . | . . . Trap Hack Attempts . | . . . Triggered . | . . . Disarmed . | . . . Reprogrammed . | . . . Reused . | . . . Traps Extracted . | . . . Installed . | . . . Triggered . | . . . Machines | -11 -10 -9 ---------- Run | Yrd Mat Mat Machines Disabled . | . . . Max in Single Turn . | . . . Machines Repaired . | . . . Machines Dismantled . | . . . Machines Sabotaged . | . . . Overloaded Fab Kills . | . . . Hacking | -11 -10 -9 --------- Run | Yrd Mat Mat Machines Accessed 2 | . 2 . Terminals 2 | . 2 . Fabricators . | . . . Repair Stations . | . . . Recycling Units . | . . . Scanalyzers . | . . . Garrison Access . | . . . Total Hacks 4 | . 4 . Successful 2 | . 2 . Failed 2 | . 2 . Catastrophic . | . . . Database Lockouts . | . . . Manual . | . . . Terminals 4 | . 4 . Fabricators . | . . . Repair Stations . | . . . Recycling Units . | . . . Scanalyzers . | . . . Garrison Access . | . . . Terminal Hacks 2 | . 2 . Terminal Index 1 | . 1 . Zone Layout 1 | . 1 . Fabricator Hacks . | . . . Repair Station Hacks . | . . . Recycling Unit Hacks . | . . . Scanalyzer . | . . . Garrison Access Hacks . | . . . Unauthorized Hacks . | . . . Terminals . | . . . Fabricators . | . . . Repair Stations . | . . . Recycling Units . | . . . Scanalyzers . | . . . Garrison Access . | . . . Data Cores Recovered . | . . . Used . | . . . Hacking Detections . | . . . Full Trace Events . | . . . Feedback Events . | . . . Feedback Blocked . | . . . Robot Schematics Acquired . | . . . Robots Built . | . . . Authchips . | . . . Time . | . . . Total Robot Build Rating . | . . . Part Schematics Acquired . | . . . Parts Built . | . . . Authchips . | . . . Time . | . . . Total Part Build Rating . | . . . Parts Repaired . | . . . Time . | . . . Parts Recycled . | . . . Recycled Matter . | . . . Retrieved Matter . | . . . Retrieved Components . | . . . Parts Scanalyzed . | . . . Part Schematics Acquired . | . . . Parts Damaged . | . . . Bothacking | -11 -10 -9 ------------ Run | Yrd Mat Mat Used RIF Installer . | . . . Robots Hacked . | . . . Non-combat . | . . . Combat . | . . . Robot Hacks Applied . | . . . Relay Couplers Released . | . . . Fabnet Peak Effective % . | . . . Robots Rewired . | . . . Allies Hacked . | . . . Hacks Repelled . | . . . Allies | -11 -10 -9 -------- Run | Yrd Mat Mat Total Allies . | . . . Largest Group . | . . . Highest-Rated Group . | . . . Highest-Rated Ally . | . . . Total Orders . | . . . Ally Attacks . | . . . Total Damage . | . . . Kills . | . . . Allies Corrupted . | . . . Allies Melted . | . . . Intel | -11 -10 -9 ------- Run | Yrd Mat Mat Robot Analysis Total . | . . . Derelict Logs Recovered . | . . . Drone Launches . | . . . Drone Recoveries . | . . . Exploration | -11 -10 -9 ------------- Run | Yrd Mat Mat Turns Passed 1978 | 75 1429 474 Spaces Moved 583 | 41 479 63 Core 8 | 6 . 2 Treads 514 | 35 479 . Legs 61 | . . 61 Wheels . | . . . Hover . | . . . Flight . | . . . Fastest Speed 50 | 50 160 610 Average Speed 302 | 156 267 667 Slowest Speed 2500 | 200 400 2500 Overloaded Moves . | . . . Propulsion Burnouts . | . . . Robots Hopped . | . . . Cave-ins Triggered . | . . . Exploration Rate (%) 18 | 4 43 8 Regions Visited 2 Branch Regions . Pre-discovered Areas . | . . . Known Exits Taken . | . . . Unknown Exits Taken 2 | 1 1 . Scrap Searched . | . . . Spaces Dug . | . . . Terrain Destroyed . | . . . Melee . | . . . Projectile . | . . . AOE . | . . . Terrain Rammed . | . . . Walls Destroyed . | . . . Machines Disabled . | . . . Actions | -11 -10 -9 --------- Run | Yrd Mat Mat Total 708 | 49 565 94 Wait 18 | . 18 . Move 581 | 40 478 63 Hop . | . . . Pick Up 25 | 3 20 2 Fast Attach 13 | 6 7 . Attach 4 | . . 4 Detach . | . . . Swap 5 | . 2 3 Drop 7 | . 5 2 Fire 52 | . 33 19 Melee . | . . . Ram . | . . . Kick 1 | . . 1 Crush 2 | . 2 . Escape Stasis . | . . . Rewire . | . . . Trap . | . . . Miscellaneous . | . . . Route ------- -11/Scrapyard -10/Materials -9/Materials History --------- Turn | Location | Event 31 | -11/Scrapyard | Discovered new exit (range 15) 76 | -11/Scrapyard | Entered Materials 305 | -10/Materials | Build established: Mutant 924 | -10/Materials | Build established: Hauler-Mutant 1485 | -10/Materials | Discovered new exit (range 6) 1505 | -10/Materials | Entered another Materials area 1505 | -9/Materials | Evolved 2 slots: Power x1, Utility x1 1964 | -9/Materials | Core integrity fell below 50% 1974 | -9/Materials | Core integrity fell below 20% 1979 | -9/Materials | Destroyed by S-10 Pest with Light Assault Rifle Last Messages --------------- 01947_ Ion Engine destroyed. 01947_ Aluminum Leg destroyed. 01949_ K-01 Serf collects debris. 01953_ S-10 Pest destroyed. 01953_ K-01 Serf collects debris. 01957_ Lgt. Cannon destroyed. 01958_ K-01 Serf collects debris. 01959_ R-06 Scavenger collects Lgt. Ion Engine. 01960_ U-05 Engineer destroyed. 01960_ Ion Engine destroyed. 01961_ K-01 Serf collects debris. 01968_ R-06 Scavenger collects Flight Unit. 01970_ U-05 Engineer builds a Door. 01970_ K-01 Serf collects debris. 01972_ S-10 Pest destroyed. 01972_ R-06 Scavenger collects Lgt. Assault Rifle. 01973_ K-01 Serf collects debris. 01975_ R-06 Scavenger collects Wheel. 01976_ K-01 Serf collects debris. 01979_ R-06 Scavenger collects Terrain Scan Processor. Map ----- +----------------------------------------------------+ | ?????????????????????????????????????????????????? | | ?????????????????????????????????????????????????? | | ?????????????????????????????????????????????????? | | ?????????????????????????????????????????????????? | | ?????????????????????????????????????????????????? | | ?????????????????????????????????????????????????? | | ?????????????????????????????????????????????????? | | ?????????????????????????????????????????????????? | | ?????????????????????????????????????????????????? | | ?????????????????????????????????????????????????? | | ?????????????????????????????????????????????????? | | ?????????????????????????????????????????????????? | | ?????????????????????????????????????????????????? | | ?????????????????????????????????????????????????? | | ?????????????????????????????????????????????????? | | ?????????????????????????????????????????????????? | | ?????????????????????????????????????????????????? | | ?????????????????????????????????????????????????? | | ?????????????????#?""??????????#?????????????????? | | ?????????????????# ""????????? #?????????????????? | | ????????????# ???# ""???????? #?????????????????? | | ????????????# ??? ??????? #?????????????????? | | ???????###### ####/####### #?????????????????? | | ?????? % % % u r%% % # "" ""??????????? | | ?????? % s %s k + ""??????????? | | ?????? % % % %*%r@ g #?????????????????? | | ??????# ###+####### Y[###/####?????????????????? | | ????????????????????# #????????????????????????? | | ????????????????????# #????????????????????????? | | ????????????????????# #????????????????????????? | | ????????????????????# #????????????????????????? | | ????????????????????# #????????????????????????? | | ????????????????????# #????????????????????????? | | ????????????????????# #????????????????????????? | | ????????????????????# #????????????????????????? | | ????????????????????# #????????????????????????? | | ????????????????????# #????????????????????????? | | ????????????????????# #????????????????????????? | | ????????????????????# #????????????????????????? | | ????????????????????# ########?????????????????? | | ????????????????????# # """ #?????????????????? | | ????????????????????# # "R" #?????????????????? | | ????????????????????# # " " #?????????????????? | | ????????????????????# # #?????????????????? | | ????????????????????# # #?????????????????? | | ????????????????????# + """ #?????????????????? | | ????????????????????# # """ #?????????????????? | | ????????????????????##### """ #?????????????????? | | ????????????????????????# ####+###??????????? | | ????????????????????????# """ ## ##########+? | +----------------------------------------------------+ Best States ------------- Heat Dissipation 38 Energy Generation 15 Energy Capacity 400 Matter Stores 300 Matter Capacity 300 Sight Range 16 Terrain Scan Density 10 Propulsion Shielding 33 Evasion (%) 40 Recoil Reduction 2 Item Schematics ----------------- None Robot Schematics ------------------ None Fabricated ------------ Nothing Alien Tech Used ----------------- None Achievements -------------- Tank Challenges ------------ None Game ------ Seed PowerCoordinationMultitool Manual? 0 Play Time 00:14:51 Cumulative 8.7 hours Start 2024.07.06 @ 22:08:43 End 2024.07.06 @ 22:20:39 Sessions 1 Manual Loads 0 Difficulty Rogue Special Mode None Game No. 15 Rogue 12 Adventurer 3 Explorer 0 Win Type - Total 0 Types 0/0/0/0/0/0/0/0/0 Lore% 9 Gallery% 13 Achievement% 10 Wizard Run 0 Options --------- Layout 0 ASCII 0 Keyboard 0 Movement Arrows Keybinds 0 Fullscreen 1 Font 18/SmallcapsGlow Map View 38x25 Zoom Use 100% Tactical HUD 1 Map Filters NONE Filters NONE Steam 1 RUN: fd84ac8d-52c8-4e99-8d28-73c3b2fbb163